[Event "MČR juniorů a juniorek v rapid šachu 2024"]
[Site "Hotel Fit Fun, Harrachov, Czech Republic"]
[Date "2024.09.22"]
[Round "8.6"]
[White "Sadil Antonin"]
[Black "Jun Rudolf"]
[Result "0-1"]
[TimeControl "20+5"]
[WhiteFideId "23735597"]
[BlackFideId "376612"]
[WhiteElo "1784"]
[BlackElo "2142"]

1. e4 {[%clk 00:20:07]} {[%emt 00:00:03]} c5 {[%clk 00:20:09]} 2. Nc3 {[%clk
00:20:10]} {[%emt 00:00:02]} Nc6 {[%clk 00:20:11]} {[%emt 00:00:03]} 3. g3
{[%clk 00:20:11]} {[%emt 00:00:05]} g6 {[%clk 00:20:14]} {[%emt 00:00:02]} 4.
Bg2 {[%clk 00:20:09]} {[%emt 00:00:06]} Bg7 {[%clk 00:20:18]} 5. d3 {[%clk
00:20:08]} {[%emt 00:00:07]} d6 {[%clk 00:20:22]} {[%emt 00:00:02]} 6. Be3
{[%clk 00:20:07]} {[%emt 00:00:05]} a6 {[%clk 00:20:26]} {[%emt 00:00:02]} 7.
Qd2 {[%clk 00:19:46]} {[%emt 00:00:25]} e6 {[%clk 00:20:30]} {[%emt 00:00:02]}
8. Nd1 {[%clk 00:19:32]} {[%emt 00:00:18]} h6 {[%clk 00:20:31]} {[%emt
00:00:04]} 9. Ne2 {[%clk 00:19:22]} {[%emt 00:00:14]} Nge7 {[%clk 00:20:31]}
{[%emt 00:00:05]} 10. O-O {[%clk 00:18:38]} {[%emt 00:00:49]} Qc7 {[%clk
00:20:34]} {[%emt 00:00:03]} 11. c3 {[%clk 00:18:31]} {[%emt 00:00:12]} b5
{[%clk 00:20:34]} {[%emt 00:00:04]} 12. d4 {[%clk 00:18:25]} {[%emt 00:00:11]}
cxd4 {[%clk 00:20:37]} {[%emt 00:00:02]} 13. Nxd4 {[%clk 00:18:27]} {[%emt
00:00:03]} Bb7 {[%clk 00:20:41]} {[%emt 00:00:02]} 14. f4 {[%clk 00:17:39]}
{[%emt 00:00:52]} O-O {[%clk 00:20:45]} {[%emt 00:00:02]} 15. f5 {[%clk
00:17:16]} {[%emt 00:00:28]} exf5 {[%clk 00:20:39]} {[%emt 00:00:11]} 16. exf5
{[%clk 00:16:51]} {[%emt 00:00:30]} Nxd4 {[%clk 00:20:42]} {[%emt 00:00:02]} 17.
Bxd4 {[%clk 00:16:07]} {[%emt 00:00:49]} Nxf5 {[%clk 00:20:01]} {[%emt
00:00:47]} 18. Bxg7 {[%clk 00:15:13]} {[%emt 00:00:59]} Kxg7 {[%clk 00:20:04]}
{[%emt 00:00:02]} 19. Bxb7 {[%clk 00:14:59]} {[%emt 00:00:19]} Qxb7 {[%clk
00:19:54]} {[%emt 00:00:16]} 20. Rxf5 {[%clk 00:14:12]} {[%emt 00:00:51]} gxf5
{[%clk 00:19:47]} {[%emt 00:00:12]} 21. Qd4+ {[%clk 00:14:02]} {[%emt
00:00:15]} f6 {[%clk 00:19:42]} {[%emt 00:00:11]} 22. Qf4 {[%clk 00:13:08]}
{[%emt 00:00:57]} Qe4 {[%clk 00:19:43]} {[%emt 00:00:05]} 23. Qxd6 {[%clk
00:12:56]} {[%emt 00:00:17]} Qe5 {[%clk 00:18:56]} {[%emt 00:00:52]} 24. Qd7+
{[%clk 00:12:08]} {[%emt 00:00:54]} Rf7 {[%clk 00:18:58]} {[%emt 00:00:03]} 25.
Qc6 {[%clk 00:12:10]} {[%emt 00:00:03]} Qe4 {[%clk 00:18:58]} {[%emt 00:00:05]}
26. Qc5 {[%clk 00:11:46]} {[%emt 00:00:28]} Rd8 {[%clk 00:18:48]} {[%emt
00:00:14]} 27. Ne3 {[%clk 00:11:20]} {[%emt 00:00:31]} Kh7 {[%clk 00:16:06]}
{[%emt 00:02:48]} 28. Rf1 {[%clk 00:10:41]} {[%emt 00:00:44]} Qe5 {[%clk
00:15:25]} {[%emt 00:00:46]} 29. Rxf5 {[%clk 00:09:56]} {[%emt 00:00:50]} Qxc5
{[%clk 00:15:27]} {[%emt 00:00:03]} 30. Rxc5 {[%clk 00:10:00]} {[%emt
00:00:01]} Rd2 {[%clk 00:15:05]} {[%emt 00:00:28]} 31. Rc6 {[%clk 00:09:15]}
{[%emt 00:00:50]} Re7 {[%clk 00:15:01]} {[%emt 00:00:08]} 32. Nf1 {[%clk
00:09:10]} {[%emt 00:00:09]} Rxb2 {[%clk 00:15:04]} {[%emt 00:00:02]} 33. Rxa6
{[%clk 00:09:01]} {[%emt 00:00:15]} Kg6 {[%clk 00:15:08]} {[%emt 00:00:01]} 34.
a4 {[%clk 00:08:45]} {[%emt 00:00:20]} Re1 {[%clk 00:14:33]} {[%emt 00:00:40]}
35. Rb6 {[%clk 00:07:56]} {[%emt 00:00:54]} Rbb1 {[%clk 00:14:33]} {[%emt
00:00:05]} 36. axb5 {[%clk 00:07:55]} {[%emt 00:00:06]} Rxf1+ {[%clk 00:14:36]}
{[%emt 00:00:02]} 37. Kg2 {[%clk 00:07:59]} Rfc1 {[%clk 00:14:40]} {[%emt
00:00:02]} 38. Kh3 {[%clk 00:07:40]} {[%emt 00:00:24]} Rxc3 {[%clk 00:14:43]}
{[%emt 00:00:02]} 39. Kh4 {[%clk 00:07:28]} {[%emt 00:00:17]} Rc5 {[%clk
00:14:32]} {[%emt 00:00:16]} 40. g4 {[%clk 00:07:21]} {[%emt 00:00:12]} Rb3
{[%clk 00:14:19]} {[%emt 00:00:18]} 41. h3 {[%clk 00:07:14]} {[%emt 00:00:12]}
Rcc3 {[%clk 00:14:21]} {[%emt 00:00:03]} 0-1



[ePGN "0.1;DGT LiveChess/2.2.6"]

[Event "MČR juniorů a juniorek v rapid šachu 2024"]
[Site "Hotel Fit Fun, Harrachov, Czech Republic"]
[Date "2024.09.22"]
[Round "8.7"]
[White "Pressler Tobias"]
[Black "Sichrovsky Tomas"]
[Result "0-1"]
[TimeControl "20+5"]
[WhiteFideId "23715359"]
[BlackFideId "23704730"]
[WhiteElo "1992"]
[BlackElo "1928"]

1. e4 {[%clk 00:20:10]} {[%emt 00:00:15]} c6 {[%clk 00:20:08]} {[%emt
00:00:02]} 2. d4 {[%clk 00:20:13]} {[%emt 00:00:03]} d5 {[%clk 00:20:13]} 3. e5
{[%clk 00:20:17]} Bf5 {[%clk 00:20:16]} 4. h4 {[%clk 00:20:21]} h5 {[%clk
00:20:21]} {[%emt 00:00:02]} 5. Bd3 {[%clk 00:20:25]} {[%emt 00:00:01]} Bxd3
{[%clk 00:20:25]} {[%emt 00:00:01]} 6. Qxd3 {[%clk 00:20:28]} {[%emt 00:00:01]}
Qa5+ {[%clk 00:20:29]} {[%emt 00:00:01]} 7. Nd2 {[%clk 00:20:32]} {[%emt
00:00:01]} Qa6 {[%clk 00:20:33]} 8. Qf3 {[%clk 00:20:27]} {[%emt 00:00:09]} e6
{[%clk 00:20:37]} {[%emt 00:00:01]} 9. Ne2 {[%clk 00:20:26]} {[%emt 00:00:07]}
Nh6 {[%clk 00:20:40]} {[%emt 00:00:02]} 10. Qxh5 {[%clk 00:19:53]} {[%emt
00:00:38]} c5 {[%clk 00:20:36]} {[%emt 00:00:09]} 11. c3 {[%clk 00:19:33]}
{[%emt 00:00:24]} Nc6 {[%clk 00:20:40]} {[%emt 00:00:01]} 12. Qf3 {[%clk
00:19:17]} {[%emt 00:00:21]} Nf5 {[%clk 00:20:17]} {[%emt 00:00:28]} 13. Nb3
{[%clk 00:18:01]} {[%emt 00:01:22]} Nxh4 {[%clk 00:20:02]} {[%emt 00:00:20]} 14.
Rxh4 {[%clk 00:17:49]} {[%emt 00:00:17]} Rxh4 {[%clk 00:20:06]} 15. g3 {[%clk
00:17:52]} {[%emt 00:00:02]} Rh8 {[%clk 00:20:05]} {[%emt 00:00:04]} 16. Bg5
{[%clk 00:17:55]} {[%emt 00:00:03]} cxd4 {[%clk 00:19:45]} {[%emt 00:00:25]} 17.
cxd4 {[%clk 00:17:55]} {[%emt 00:00:05]} Nb4 {[%clk 00:19:33]} {[%emt
00:00:17]} 18. Kf1 {[%clk 00:17:52]} {[%emt 00:00:08]} Rc8 {[%emt 00:01:26]} 19.
a3 {[%emt 00:02:04]} Nd3 {[%emt 00:00:36]} 20. Rb1 {[%emt 00:01:41]} Rc2 {[%emt
00:05:23]} 21. Nd2 {[%emt 00:01:20]} Rh2 {[%emt 00:00:25]} 22. Be3 {[%clk
00:09:44]} {[%emt 00:03:46]} Nxf2 23. Kg1 {[%emt 00:04:42]} Ne4 {[%emt
00:00:48]} 24. Rf1 {[%clk 00:08:24]} {[%emt 00:00:25]} f6 25. Kxh2 {[%emt
00:01:11]} Nxd2 {[%emt 00:00:45]} 26. Qh5+ {[%emt 00:00:34]} Kd7 {[%emt
00:01:56]} 27. Bxd2 {[%clk 00:05:51]} {[%emt 00:00:02]} Rxd2 {[%clk 00:06:02]}
{[%emt 00:00:03]} 28. Rf2 {[%emt 00:01:32]} Qd3 {[%emt 00:01:49]} 29. exf6
{[%clk 00:04:14]} {[%emt 00:00:02]} gxf6 {[%emt 00:00:26]} 30. Rg2 {[%clk
00:02:28]} {[%emt 00:01:27]} Rxb2 {[%emt 00:02:31]} 31. a4 {[%emt 00:00:36]} b6
{[%emt 00:00:02]} 32. Qf7+ {[%clk 00:00:34]} {[%emt 00:00:07]} Be7 {[%clk
00:03:37]} 33. Qh5 {[%emt 00:01:05]} Qd1 {[%emt 00:00:11]} 34. Qf3 {[%emt
00:00:28]} Qxa4 {[%clk 00:02:08]} {[%emt 00:00:07]} 35. Kh3 {[%emt 00:00:25]}
Qc2 {[%emt 00:00:31]} 36. Kh2 {[%emt 00:00:42]} Qd2 {[%emt 00:00:05]} 37. Qg4
{[%clk 00:00:11]} {[%emt 00:00:11]} Qh6+ {[%clk 00:00:53]} {[%emt 00:00:10]} 38.
Kg1 {[%clk 00:00:14]} {[%emt 00:00:02]} a5 {[%clk 00:00:26]} {[%emt 00:00:33]}
39. Nf4 {[%clk 00:00:13]} {[%emt 00:00:06]} f5 {[%clk 00:00:22]} {[%emt
00:00:09]} 40. Qd1 {[%clk 00:00:09]} {[%emt 00:00:09]} Rxg2+ {[%clk 00:00:24]}
{[%emt 00:00:02]} 41. Kxg2 {[%clk 00:00:12]} {[%emt 00:00:01]} Bd6 {[%clk
00:00:28]} {[%emt 00:00:01]} 42. Qa4+ {[%clk 00:00:16]} {[%emt 00:00:01]} Ke7
{[%clk 00:00:31]} {[%emt 00:00:02]} 43. Ne2 {[%clk 00:00:18]} {[%emt 00:00:04]}
Qe3 {[%clk 00:00:34]} {[%emt 00:00:02]} 44. Qc2 {[%clk 00:00:18]} {[%emt
00:00:05]} Qe4+ {[%clk 00:00:37]} 0-1



[ePGN "0.1;DGT LiveChess/2.2.6"]

[Event "MČR juniorů a juniorek v rapid šachu 2024"]
[Site "Hotel Fit Fun, Harrachov, Czech Republic"]
[Date "2024.09.22"]
[Round "8.8"]
[White "Rousek Jan"]
[Black "Nagyova Daniela"]
[Result "1-0"]
[TimeControl "20+5"]
[WhiteFideId "386669"]
[BlackFideId "390070"]
[WhiteElo "1958"]
[BlackElo "1787"]

1. d4 {[%clk 00:20:07]} {[%emt 00:00:03]} Nf6 {[%clk 00:20:08]} {[%emt
00:00:02]} 2. c4 {[%clk 00:20:10]} {[%emt 00:00:02]} e6 {[%clk 00:20:11]}
{[%emt 00:00:03]} 3. g3 {[%clk 00:20:11]} {[%emt 00:00:03]} d5 {[%clk
00:19:39]} {[%emt 00:00:37]} 4. Bg2 {[%clk 00:20:13]} {[%emt 00:00:03]} Be7
{[%clk 00:18:36]} {[%emt 00:01:09]} 5. Nf3 {[%clk 00:20:15]} {[%emt 00:00:03]}
O-O {[%clk 00:18:00]} {[%emt 00:00:41]} 6. O-O {[%clk 00:20:15]} {[%emt
00:00:03]} b6 {[%clk 00:17:19]} {[%emt 00:00:48]} 7. Nc3 {[%clk 00:19:50]}
{[%emt 00:00:30]} Bb7 {[%clk 00:17:05]} {[%emt 00:00:20]} 8. Ne5 {[%clk
00:19:47]} {[%emt 00:00:07]} c5 {[%clk 00:15:51]} {[%emt 00:01:19]} 9. cxd5
{[%clk 00:18:51]} {[%emt 00:01:01]} exd5 {[%clk 00:15:26]} {[%emt 00:00:31]} 10.
dxc5 {[%clk 00:18:22]} {[%emt 00:00:34]} bxc5 {[%clk 00:15:24]} {[%emt
00:00:07]} 11. Qb3 {[%clk 00:17:47]} {[%emt 00:00:39]} Qc7 {[%clk 00:13:47]}
{[%emt 00:01:43]} 12. Nxd5 {[%clk 00:16:22]} {[%emt 00:01:30]} Nxd5 {[%clk
00:13:44]} {[%emt 00:00:08]} 13. Bxd5 {[%clk 00:16:21]} {[%emt 00:00:06]} Bxd5
{[%clk 00:13:25]} {[%emt 00:00:24]} 14. Qxd5 {[%clk 00:16:22]} {[%emt
00:00:03]} Na6 {[%clk 00:13:08]} {[%emt 00:00:23]} 15. Bf4 {[%clk 00:15:36]}
{[%emt 00:00:51]} Nb4 {[%clk 00:11:29]} {[%emt 00:01:45]} 16. Qc4 {[%clk
00:13:01]} {[%emt 00:02:39]} Bd6 {[%clk 00:09:48]} {[%emt 00:01:47]} 17. Nd3
{[%clk 00:12:36]} {[%emt 00:00:28]} Nxd3 {[%clk 00:09:38]} {[%emt 00:00:16]} 18.
Bxd6 {[%clk 00:12:39]} {[%emt 00:00:02]} Qxd6 {[%clk 00:09:35]} {[%emt
00:00:07]} 19. Qxd3 {[%clk 00:11:19]} {[%emt 00:01:24]} Qxd3 {[%clk 00:08:40]}
{[%emt 00:01:02]} 20. exd3 {[%clk 00:11:22]} {[%emt 00:00:01]} Rfd8 {[%clk
00:08:11]} {[%emt 00:00:34]} 21. Rfd1 {[%clk 00:11:12]} {[%emt 00:00:14]} Rd5
{[%clk 00:06:46]} {[%emt 00:01:31]} 22. Rac1 {[%clk 00:10:59]} {[%emt
00:00:18]} Rad8 {[%clk 00:06:27]} {[%emt 00:00:23]} 23. Rc3 {[%clk 00:11:00]}
{[%emt 00:00:05]} Kf8 {[%clk 00:06:02]} {[%emt 00:00:33]} 24. Kf1 {[%clk
00:10:56]} {[%emt 00:00:06]} h5 {[%clk 00:03:53]} {[%emt 00:02:14]} 25. h4
{[%clk 00:09:06]} {[%emt 00:01:54]} f6 {[%clk 00:03:02]} {[%emt 00:00:56]} 26.
Ke2 {[%clk 00:08:45]} {[%emt 00:00:26]} Re8+ {[%clk 00:02:36]} {[%emt
00:00:32]} 27. Kd2 {[%clk 00:08:48]} {[%emt 00:00:01]} Rde5 {[%clk 00:02:29]}
{[%emt 00:00:12]} 28. Kc2 {[%clk 00:08:10]} {[%emt 00:00:43]} g5 {[%clk
00:01:25]} {[%emt 00:01:10]} 29. Ra3 {[%clk 00:07:47]} {[%emt 00:00:27]} R8e7
{[%clk 00:01:03]} {[%emt 00:00:27]} 30. Ra6 {[%clk 00:06:24]} {[%emt 00:01:27]}
Kg7 {[%clk 00:00:51]} {[%emt 00:00:18]} 31. Ra4 {[%clk 00:05:08]} {[%emt
00:01:21]} Rf5 {[%clk 00:00:27]} {[%emt 00:00:31]} 32. Rd2 {[%clk 00:05:01]}
{[%emt 00:00:11]} Kg6 {[%clk 00:00:16]} {[%emt 00:00:17]} 33. Kc3 {[%clk
00:04:36]} {[%emt 00:00:29]} Rd7 {[%clk 00:00:10]} {[%emt 00:00:11]} 34. Re4
{[%clk 00:04:21]} {[%emt 00:00:19]} Rfd5 {[%clk 00:00:11]} {[%emt 00:00:05]} 35.
Rc4 {[%clk 00:03:35]} {[%emt 00:00:50]} Kf5 {[%clk 00:00:11]} {[%emt 00:00:05]}
36. a3 {[%clk 00:02:20]} {[%emt 00:01:19]} Kg6 {[%clk 00:00:10]} {[%emt
00:00:06]} 37. b4 {[%clk 00:01:26]} {[%emt 00:00:59]} cxb4+ {[%clk 00:00:13]}
{[%emt 00:00:02]} 38. axb4 {[%clk 00:01:29]} {[%emt 00:00:01]} a5 {[%clk
00:00:12]} {[%emt 00:00:07]} 39. d4 {[%clk 00:01:03]} {[%emt 00:00:31]} axb4+
{[%clk 00:00:12]} {[%emt 00:00:06]} 40. Rxb4 {[%clk 00:01:02]} {[%emt
00:00:05]} gxh4 {[%clk 00:00:09]} {[%emt 00:00:07]} 41. gxh4 {[%clk 00:01:06]}
{[%emt 00:00:01]} Kf5 {[%clk 00:00:12]} {[%emt 00:00:02]} 42. Rb6 {[%clk
00:00:36]} {[%emt 00:00:35]} Rc7+ {[%clk 00:00:12]} {[%emt 00:00:05]} 43. Kd3
{[%clk 00:00:39]} {[%emt 00:00:02]} Rcd7 {[%clk 00:00:13]} {[%emt 00:00:05]} 44.
Ke3 {[%clk 00:00:38]} {[%emt 00:00:06]} Rg7 {[%clk 00:00:09]} {[%emt 00:00:09]}
45. f3 {[%clk 00:00:37]} {[%emt 00:00:06]} Rg3 {[%clk 00:00:10]} {[%emt
00:00:04]} 46. Rc2 {[%clk 00:00:28]} {[%emt 00:00:13]} Rh3 {[%clk 00:00:09]}
{[%emt 00:00:07]} 47. Rcc6 {[%clk 00:00:32]} Rxh4 {[%clk 00:00:11]} {[%emt
00:00:03]} 48. Rxf6+ {[%clk 00:00:35]} Kg5 {[%clk 00:00:13]} {[%emt 00:00:04]}
49. Rg6+ {[%clk 00:00:39]} Kf5 {[%clk 00:00:17]} 50. Rbf6# 1-0



[ePGN "0.1;DGT LiveChess/2.2.6"]

[Event "MČR juniorů a juniorek v rapid šachu 2024"]
[Site "Hotel Fit Fun, Harrachov, Czech Republic"]
[Date "2024.09.22"]
[Round "8.9"]
[White "Garabik Marek"]
[Black "Andrle Filip"]
[Result "1-0"]
[TimeControl "20+5"]
[WhiteFideId "23717742"]
[BlackFideId "23718749"]
[WhiteElo "1933"]
[BlackElo "1789"]

1. e4 {[%clk 00:20:09]} {[%emt 00:00:01]} c5 {[%clk 00:20:08]} {[%emt
00:00:02]} 2. Nc3 {[%clk 00:20:12]} {[%emt 00:00:02]} Nc6 {[%clk 00:20:09]}
{[%emt 00:00:04]} 3. f4 {[%clk 00:20:15]} {[%emt 00:00:02]} e6 {[%clk
00:20:08]} {[%emt 00:00:07]} 4. Nf3 {[%clk 00:20:17]} {[%emt 00:00:02]} d6
{[%clk 00:19:30]} {[%emt 00:00:43]} 5. Bb5 {[%clk 00:20:21]} {[%emt 00:00:02]}
Bd7 {[%clk 00:19:31]} {[%emt 00:00:04]} 6. d3 {[%clk 00:20:17]} {[%emt
00:00:09]} a6 {[%clk 00:19:32]} {[%emt 00:00:04]} 7. Bxc6 {[%clk 00:20:21]}
{[%emt 00:00:01]} Bxc6 {[%clk 00:19:34]} {[%emt 00:00:02]} 8. O-O {[%clk
00:20:23]} {[%emt 00:00:03]} g6 {[%clk 00:19:25]} {[%emt 00:00:15]} 9. h3
{[%clk 00:20:20]} {[%emt 00:00:08]} Ne7 {[%clk 00:19:23]} {[%emt 00:00:06]} 10.
Be3 {[%clk 00:20:23]} {[%emt 00:00:03]} Bg7 {[%clk 00:19:23]} {[%emt 00:00:05]}
11. Rb1 {[%clk 00:20:18]} {[%emt 00:00:10]} O-O {[%clk 00:19:21]} {[%emt
00:00:06]} 12. Bf2 {[%clk 00:19:41]} {[%emt 00:00:42]} b5 {[%clk 00:19:10]}
{[%emt 00:00:16]} 13. Qd2 {[%clk 00:19:45]} {[%emt 00:00:01]} Qd7 {[%clk
00:18:28]} {[%emt 00:00:47]} 14. g4 {[%clk 00:19:15]} {[%emt 00:00:35]} f5
{[%clk 00:18:17]} {[%emt 00:00:16]} 15. Bg3 {[%clk 00:17:38]} {[%emt 00:01:42]}
b4 {[%clk 00:17:43]} {[%emt 00:00:39]} 16. Nd1 {[%clk 00:16:33]} {[%emt
00:01:10]} fxe4 {[%clk 00:17:40]} {[%emt 00:00:08]} 17. dxe4 {[%clk 00:16:37]}
{[%emt 00:00:02]} Bxe4 {[%clk 00:17:38]} {[%emt 00:00:07]} 18. Ng5 {[%clk
00:16:37]} {[%emt 00:00:04]} Bd5 {[%clk 00:16:54]} {[%emt 00:00:49]} 19. Ne3
{[%clk 00:15:52]} {[%emt 00:00:50]} h6 {[%clk 00:15:27]} {[%emt 00:01:31]} 20.
Nxd5 {[%clk 00:15:43]} {[%emt 00:00:14]} exd5 {[%clk 00:14:18]} {[%emt
00:01:14]} 21. Nf3 {[%clk 00:15:29]} {[%emt 00:00:19]} d4 {[%clk 00:14:09]}
{[%emt 00:00:13]} 22. Nh4 {[%clk 00:13:38]} {[%emt 00:01:57]} Rf6 {[%clk
00:12:46]} {[%emt 00:01:28]} 23. Rbe1 {[%clk 00:13:14]} {[%emt 00:00:29]} Nd5
{[%clk 00:12:09]} {[%emt 00:00:41]} 24. Qg2 {[%clk 00:13:11]} {[%emt 00:00:08]}
Qf7 {[%clk 00:09:59]} {[%emt 00:02:15]} 25. f5 {[%clk 00:11:56]} {[%emt
00:01:22]} g5 {[%clk 00:09:47]} {[%emt 00:00:16]} 26. Ng6 {[%clk 00:11:50]}
{[%emt 00:00:10]} Ra7 {[%clk 00:09:22]} {[%emt 00:00:31]} 27. Bf2 {[%clk
00:10:29]} {[%emt 00:01:26]} Ne7 {[%clk 00:07:49]} {[%emt 00:01:38]} 28. Nxe7+
{[%clk 00:10:06]} {[%emt 00:00:28]} Rxe7 {[%clk 00:07:51]} {[%emt 00:00:03]} 29.
Rxe7 {[%clk 00:10:10]} Qxe7 {[%clk 00:07:53]} {[%emt 00:00:03]} 30. Re1 {[%clk
00:10:15]} Qf7 {[%clk 00:06:33]} {[%emt 00:01:25]} 31. Bg3 {[%clk 00:08:16]}
{[%emt 00:02:04]} d5 {[%clk 00:06:00]} {[%emt 00:00:38]} 32. Qe2 {[%clk
00:07:16]} {[%emt 00:01:04]} Rc6 {[%clk 00:04:53]} {[%emt 00:01:12]} 33. h4
{[%clk 00:04:50]} {[%emt 00:02:32]} c4 {[%clk 00:04:09]} {[%emt 00:00:49]} 34.
hxg5 {[%clk 00:04:40]} {[%emt 00:00:15]} hxg5 {[%clk 00:04:11]} {[%emt
00:00:03]} 35. Kg2 {[%clk 00:03:30]} {[%emt 00:01:15]} Bf6 {[%clk 00:03:52]}
{[%emt 00:00:23]} 36. Be5 {[%clk 00:03:02]} {[%emt 00:00:34]} Bxe5 {[%clk
00:02:30]} {[%emt 00:01:27]} 37. Qxe5 {[%clk 00:03:06]} {[%emt 00:00:02]} d3
{[%clk 00:02:05]} {[%emt 00:00:30]} 38. Rh1 {[%clk 00:02:30]} {[%emt 00:00:41]}
Rf6 {[%clk 00:01:44]} {[%emt 00:00:25]} 39. cxd3 {[%clk 00:02:20]} {[%emt
00:00:15]} cxd3 {[%clk 00:01:42]} {[%emt 00:00:07]} 40. Qd4 {[%clk 00:02:25]}
Kg7 {[%clk 00:01:00]} {[%emt 00:00:47]} 41. Qxd3 {[%clk 00:01:20]} {[%emt
00:01:10]} Qe7 {[%clk 00:00:36]} {[%emt 00:00:29]} 42. Rh5 {[%clk 00:01:01]}
{[%emt 00:00:25]} Rd6 {[%clk 00:00:13]} {[%emt 00:00:27]} 43. Qd4+ {[%clk
00:01:01]} {[%emt 00:00:05]} Qf6 {[%clk 00:00:16]} {[%emt 00:00:03]} 44. Rxg5+
{[%clk 00:01:03]} {[%emt 00:00:03]} Kf7 {[%clk 00:00:19]} {[%emt 00:00:01]} 45.
Qxf6+ {[%clk 00:00:54]} {[%emt 00:00:14]} Rxf6 {[%clk 00:00:23]} {[%emt
00:00:01]} 46. Rh5 {[%clk 00:00:58]} Rc6 {[%clk 00:00:22]} {[%emt 00:00:06]} 47.
Kg3 {[%clk 00:00:59]} {[%emt 00:00:04]} Rc2 {[%clk 00:00:25]} {[%emt 00:00:02]}
48. Rh2 {[%clk 00:01:03]} Rc1 {[%clk 00:00:20]} {[%emt 00:00:09]} 49. Kf4
{[%clk 00:01:05]} {[%emt 00:00:03]} d4 {[%clk 00:00:20]} {[%emt 00:00:06]} 50.
Ke4 {[%clk 00:01:09]} {[%emt 00:00:01]} Rg1 {[%clk 00:00:23]} {[%emt 00:00:01]}
51. Kxd4 {[%clk 00:01:04]} {[%emt 00:00:11]} Rxg4+ {[%clk 00:00:26]} {[%emt
00:00:02]} 52. Kc5 {[%clk 00:01:07]} {[%emt 00:00:02]} Kf6 {[%clk 00:00:19]}
{[%emt 00:00:12]} 53. Rf2 {[%clk 00:01:08]} {[%emt 00:00:04]} b3 {[%clk
00:00:08]} {[%emt 00:00:17]} 54. axb3 {[%clk 00:01:10]} {[%emt 00:00:04]} Rg8
{[%clk 00:00:10]} {[%emt 00:00:02]} 55. Kb6 {[%clk 00:01:10]} {[%emt 00:00:05]}
Rb8+ {[%clk 00:00:13]} {[%emt 00:00:02]} 56. Kxa6 {[%clk 00:01:14]} {[%emt
00:00:02]} Rxb3 {[%clk 00:00:16]} {[%emt 00:00:02]} 57. Ka5 {[%clk 00:01:17]}
{[%emt 00:00:01]} Rb8 {[%clk 00:00:09]} {[%emt 00:00:13]} 58. b4 {[%clk
00:01:19]} {[%emt 00:00:02]} Ra8+ {[%clk 00:00:09]} {[%emt 00:00:04]} 59. Kb5
{[%clk 00:01:23]} {[%emt 00:00:01]} Rb8+ {[%clk 00:00:13]} 60. Ka4 {[%clk
00:01:28]} Ra8+ {[%clk 00:00:15]} {[%emt 00:00:04]} 61. Kb3 {[%clk 00:01:30]}
{[%emt 00:00:03]} Rb8 {[%clk 00:00:19]} 62. Rf1 {[%clk 00:01:14]} {[%emt
00:00:21]} Rb7 {[%clk 00:00:18]} {[%emt 00:00:05]} 63. Kc4 {[%clk 00:01:17]}
{[%emt 00:00:02]} Rc7+ {[%clk 00:00:20]} {[%emt 00:00:03]} 64. Kb5 {[%clk
00:01:21]} Rb7+ {[%clk 00:00:24]} 65. Kc5 {[%clk 00:01:25]} Rb8 {[%clk
00:00:10]} {[%emt 00:00:20]} 66. b5 {[%clk 00:01:29]} {[%emt 00:00:02]} Rc8+
{[%clk 00:00:07]} {[%emt 00:00:07]} 67. Kb6 {[%clk 00:01:33]} {[%emt 00:00:01]}
Rb8+ {[%clk 00:00:10]} {[%emt 00:00:02]} 68. Kc6 {[%clk 00:01:37]} Ke5 {[%clk
00:00:13]} 69. f6 {[%clk 00:01:38]} {[%emt 00:00:04]} Kd4 {[%clk 00:00:13]}
{[%emt 00:00:05]} 70. f7 {[%clk 00:01:39]} {[%emt 00:00:04]} Rc8+ {[%clk
00:00:17]} 71. Kb7 {[%clk 00:01:43]} {[%emt 00:00:01]} 1-0



[ePGN "0.1;DGT LiveChess/2.2.6"]